bitfinex/quotes_BTCUSD_20240718
["timestamp","ask_amount","ask_price","bid_price","bid_amount"]
[1721262488929,0.00833,64183.0,64182.0,2.04477642]
[1721262492110,0.00833,64183.0,64182.0,2.04484011]
[1721262492439,0.00833,64183.0,64182.0,1.95291974]
[1721262492635,0.00833,64183.0,64182.0,2.04483998]
[1721262493046,0.00833,64183.0,64182.0,2.38145298]
[1721262493247,0.00833,64183.0,64182.0,2.90542953]
[1721262493719,0.00833,64183.0,64182.0,2.97539549]
[1721262493895,0.00833,64183.0,64182.0,3.25080349]
[1721262494097,0.00833,64183.0,64182.0,3.29577832]
[1721262494329,0.00833,64183.0,64182.0,3.29577665]
[1721262494630,0.00833,64183.0,64182.0,3.93477665]
[1721262494813,0.00833,64183.0,64182.0,3.95977665]
[1721262495034,0.00833,64183.0,64182.0,3.45250929]
[1721262495231,0.00833,64183.0,64182.0,3.95986565]
[1721262496005,0.00833,64183.0,64182.0,3.8898834]
[1721262496205,0.00833,64183.0,64182.0,3.1898834]
[1721262497583,0.00833,64183.0,64182.0,3.98319307]
[1721262498015,0.00833,64183.0,64182.0,3.39806688]
[1721262498217,0.00833,64183.0,64182.0,3.21433274]
[1721262498371,0.00833,64183.0,64182.0,2.97017157]
[1721262498572,0.14793,64183.0,64182.0,2.74537157]
[1721262498878,0.14793,64183.0,64182.0,2.41075857]
[1721262499095,0.14793,64183.0,64182.0,1.67947857]
[1721262499543,0.14793,64183.0,64182.0,0.86380074]
[1721262499976,0.17293,64183.0,64182.0,0.38238174]
[1721262500178,0.17293,64183.0,64182.0,0.35438174]
[1721262501766,0.14793,64183.0,64182.0,0.62418774]
[1721262501956,0.17293,64183.0,64182.0,0.62418774]
[1721262502229,0.14793,64183.0,64182.0,0.63818774]
[1721262502648,0.14793,64183.0,64182.0,0.46838174]
[1721262503563,0.14793,64183.0,64182.0,0.48038174]
[1721262504669,0.17293,64183.0,64182.0,0.48038174]
[1721262504925,0.14793,64183.0,64182.0,0.48038174]
[1721262505704,0.17293,64183.0,64182.0,0.48038174]
[1721262506112,0.14793,64183.0,64182.0,0.48038174]
[1721262506313,0.14793,64183.0,64182.0,0.63618774]
[1721262507599,0.17293,64183.0,64182.0,0.63618774]
[1721262507819,0.14793,64183.0,64182.0,0.63618774]
[1721262508360,0.17293,64183.0,64182.0,0.48038174]
[1721262508790,0.14793,64183.0,64182.0,0.48038174]
[1721262509165,0.14793,64183.0,64182.0,0.63618774]
[1721262509803,0.14793,64183.0,64182.0,0.48038174]
[1721262510007,0.17293,64183.0,64182.0,0.48038174]
[1721262510371,0.640342,64183.0,64182.0,0.226]
[1721262510572,0.95195,64183.0,64182.0,0.226]
[1721262511594,0.95195,64183.0,64182.0,0.214]
[1721262511797,1.263558,64183.0,64182.0,0.014]
[1721262512049,0.80407,64179.0,64178.0,0.000913]
[1721262512257,0.94577,64179.0,64178.0,0.000913]
[1721262513493,0.634142,64179.0,64178.0,0.000913]
[1721262513672,0.1417,64179.0,64178.0,0.15929474]
[1721262513880,0.1667,64179.0,64178.0,0.15929474]
[1721262514079,0.1417,64179.0,64178.0,0.31511074]
[1721262514280,0.1417,64179.0,64178.0,0.93837674]
[1721262514527,0.1417,64179.0,64178.0,1.35000974]
[1721262514727,0.1417,64179.0,64178.0,1.03837674]
[1721262515169,0.1417,64179.0,64178.0,1.03437674]
[1721262515381,0.1427,64179.0,64178.0,1.03437674]
[1721262515805,0.1427,64179.0,64178.0,1.34600974]
[1721262516013,0.1417,64179.0,64178.0,1.34600974]
[1721262516186,0.1417,64179.0,64178.0,1.35000974]
[1721262516584,0.1417,64179.0,64178.0,1.34600974]
[1721262516818,0.08473,64183.0,64182.0,0.979032]
[1721262516987,0.08473,64183.0,64182.0,1.23341374]
[1721262517288,0.14473,64183.0,64182.0,1.23341374]
[1721262519076,0.14473,64183.0,64182.0,1.23741374]
[1721262519282,0.14473,64183.0,64182.0,1.24541374]
[1721262519486,0.06833,64183.0,64182.0,1.55702674]
[1721262519665,0.00833,64183.0,64182.0,1.55702674]
[1721262522126,0.00833,64183.0,64182.0,1.24541374]
[1721262522335,0.15163,64183.0,64182.0,1.24541374]
[1721262524592,0.00833,64183.0,64182.0,1.24541374]
[1721262524995,0.00833,64183.0,64182.0,1.55702674]
[1721262525219,0.00833,64183.0,64182.0,1.58002674]
[1721262525669,0.00833,64183.0,64182.0,1.72941878]
[1721262526004,0.00833,64183.0,64182.0,1.70441878]
[1721262526207,0.00833,64183.0,64182.0,2.01602404]
[1721262526414,0.00833,64183.0,64182.0,2.00802404]
[1721262526818,0.00833,64183.0,64182.0,2.00402404]
[1721262527021,0.00833,64183.0,64182.0,2.01802404]
[1721262527223,0.00833,64183.0,64182.0,2.03202404]
[1721262528285,0.00833,64183.0,64182.0,2.01802404]
[1721262528734,0.00833,64183.0,64182.0,2.12032404]
[1721262528931,0.00833,64183.0,64182.0,2.13432404]
[1721262529441,0.00833,64183.0,64182.0,2.02721974]
[1721262529634,0.00833,64183.0,64182.0,2.17102163]
[1721262529837,0.00833,64183.0,64182.0,2.18502163]
[1721262530166,0.00833,64183.0,64182.0,2.19902149]
[1721262530545,0.00833,64183.0,64182.0,2.19869382]
[1721262530740,0.00833,64183.0,64182.0,2.17369382]
[1721262531386,0.00833,64183.0,64182.0,1.72922854]
[1721262531600,0.00833,64183.0,64182.0,1.66520082]
[1721262531725,0.00833,64183.0,64182.0,1.65120082]
[1721262531931,0.00833,64183.0,64182.0,1.55902674]
[1721262532128,0.14793,64183.0,64182.0,0.51018774]
[1721262532332,0.17293,64183.0,64182.0,0.36838174]
[1721262532581,0.14793,64183.0,64182.0,0.53818774]
[1721262532784,0.14793,64183.0,64182.0,0.52418774]
[1721262533115,0.17293,64183.0,64182.0,0.52418774]
[1721262533305,0.17293,64183.0,64182.0,0.36838174]
[1721262533664,0.17293,64183.0,64182.0,0.35438174]
[1721262533863,0.17293,64183.0,64182.0,0.51018774]
[1721262534070,0.14793,64183.0,64182.0,0.51018774]
[1721262534365,0.14793,64183.0,64182.0,0.61018774]
[1721262534573,0.14793,64183.0,64182.0,1.24741374]
[1721262534910,0.14793,64183.0,64182.0,1.26141374]
[1721262535155,0.14793,64183.0,64182.0,1.24741374]
[1721262535719,0.00833,64183.0,64182.0,1.24741374]
[1721262536130,0.00833,64183.0,64182.0,1.26141374]
[1721262539706,0.00833,64183.0,64182.0,1.57302674]
[1721262539906,0.00833,64183.0,64182.0,1.59602674]
[1721262540209,0.00833,64183.0,64182.0,2.36838287]
[1721262540419,0.00833,64183.0,64182.0,1.69156987]
[1721262540667,0.07173,64183.0,64182.0,1.28441374]
[1721262540867,0.07173,64183.0,64182.0,1.26141374]
[1721262541067,0.07173,64183.0,64182.0,0.94980074]
[1721262541217,0.07173,64183.0,64182.0,0.92180074]
[1721262541419,0.09673,64183.0,64182.0,0.46838174]
[1721262541632,0.14773,64183.0,64182.0,0.63818774]
[1721262542050,0.17273,64183.0,64182.0,0.63818774]
[1721262542247,0.14773,64183.0,64182.0,0.63818774]
[1721262542584,0.14773,64183.0,64182.0,0.62418774]
[1721262542849,0.14773,64183.0,64182.0,0.63818774]
[1721262543059,0.328534,64183.0,64182.0,0.48238174]
[1721262543270,0.17273,64183.0,64182.0,0.48238174]
[1721262543440,0.328534,64183.0,64182.0,0.48238174]
[1721262543620,0.640142,64183.0,64182.0,0.48238174]
[1721262543803,0.640142,64183.0,64182.0,0.46838174]
[1721262543996,0.640142,64183.0,64182.0,0.48238174]
[1721262544198,0.640142,64183.0,64182.0,0.46838174]
[1721262544698,0.640142,64183.0,64182.0,0.45838174]
[1721262544903,0.640142,64183.0,64182.0,0.15938174]
[1721262545101,1.263358,64183.0,64182.0,0.005]
[1721262546177,1.263358,64183.0,64182.0,0.001]
[1721262546957,0.467442,64179.0,64178.0,0.000913]
[1721262547162,0.633242,64179.0,64178.0,0.15529474]
[1721262547360,0.94487,64179.0,64178.0,0.15529474]
[1721262547621,0.94487,64179.0,64178.0,0.000913]
[1721262548160,1.256498,64179.0,64178.0,0.009913]
[1721262548589,1.256498,64179.0,64178.0,0.000913]
[1721262548794,1.481298,64179.0,64178.0,0.000913]
[1721262549029,1.95960444,64179.0,64178.0,0.001913]
[1721262549360,1.86247237,64179.0,64178.0,0.001913]
[1721262549615,1.95982032,64179.0,64178.0,0.001913]
[1721262549957,1.89027395,64179.0,64178.0,0.001913]
[1721262550225,1.89027395,64179.0,64157.0,0.002794]
[1721262550226,0.323565,64158.0,64157.0,0.002794]
[1721262550423,0.323565,64158.0,64157.0,0.15438174]
[1721262551450,0.323565,64158.0,64157.0,0.15638174]
[1721262551826,0.1677,64158.0,64157.0,0.15638174]
[1721262552201,0.1677,64158.0,64157.0,0.17538174]
[1721262552854,0.323565,64158.0,64157.0,0.17538174]
[1721262553573,0.635295,64158.0,64157.0,0.16438174]
[1721262553828,0.635295,64158.0,64157.0,0.15938174]
[1721262554054,0.947025,64158.0,64157.0,0.007]
[1721262554300,0.947025,64158.0,64150.0,0.102794]
[1721262554545,0.180877,64153.0,64150.0,0.1]
[1721262554737,0.324977,64153.0,64150.0,0.1]
[1721262555500,0.1441,64153.0,64150.0,0.1]
[1721262555705,0.1441,64153.0,64150.0,0.255884]
[1721262555912,0.1441,64153.0,64152.0,0.15529474]
[1721262556108,0.1441,64153.0,64152.0,0.25529474]
[1721262556753,0.1441,64153.0,64152.0,0.26029474]
[1721262557100,0.1441,64153.0,64152.0,0.25529474]
[1721262557306,0.1441,64153.0,64152.0,0.26629474]
[1721262557641,0.1441,64153.0,64152.0,0.27429474]
[1721262557947,0.1691,64153.0,64152.0,0.27429474]
[1721262561235,0.324977,64153.0,64152.0,0.019913]
[1721262561438,1.260239,64153.0,64152.0,0.019913]
[1721262563036,1.260239,64153.0,64152.0,0.008913]
[1721262563210,1.262239,64153.0,64152.0,0.001913]
[1721262563791,1.260239,64153.0,64152.0,0.001913]
[1721262563994,1.262239,64153.0,64152.0,0.002913]
[1721262564441,1.262239,64153.0,64152.0,0.001913]
[1721262564646,1.262239,64153.0,64152.0,0.002913]
[1721262570751,1.262189,64153.0,64152.0,0.002913]
[1721262572558,0.950435,64153.0,64152.0,0.002913]
[1721262575492,0.002,64153.0,64152.0,0.31317374]
[1721262575720,0.002,64153.0,64152.0,0.15729474]
[1721262576039,0.027,64153.0,64152.0,0.15729474]
[1721262576219,0.025,64153.0,64152.0,0.15629474]
[1721262576568,0.027,64153.0,64152.0,0.15529474]
[1721262576768,0.002,64153.0,64152.0,0.15529474]
[1721262576904,0.002,64153.0,64152.0,1.01429174]
[1721262577109,0.002,64153.0,64152.0,1.32605074]
[1721262577314,0.002,64153.0,64152.0,1.38605074]
[1721262577523,0.025,64161.0,64160.0,0.66758]
[1721262577793,0.025,64161.0,64160.0,0.82196174]
[1721262578556,0.025,64161.0,64160.0,1.13368174]
[1721262578729,0.025,64164.0,64163.0,0.155853]
[1721262578931,0.04954329,64170.0,64169.0,0.467514]
[1721262579194,0.07454329,64170.0,64169.0,0.62189574]
[1721262579337,0.025,64170.0,64169.0,0.62189574]
[1721262580194,0.155824,64175.0,64174.0,0.355826]
[1721262580195,0.025,64175.0,64174.0,0.355826]
[1721262580413,0.025,64175.0,64174.0,0.82185974]
[1721262581333,0.025,64175.0,64174.0,0.51020774]
[1721262581488,0.311639,64177.0,64174.0,0.35438174]
[1721262581823,0.90046757,64176.0,64175.0,0.15438174]
[1721262582014,0.34248357,64176.0,64175.0,0.15438174]
[1721262582622,0.65412557,64176.0,64175.0,0.15438174]
[1721262582982,0.34248357,64176.0,64175.0,0.15438174]
[1721262583409,0.34368976,64176.0,64175.0,0.15438174]
[1721262583647,0.34168976,64176.0,64175.0,0.15438174]
[1721262585300,0.180821,64176.0,64175.0,0.15438174]
[1721262585982,0.025,64177.0,64175.0,0.35438174]
[1721262586183,0.11015265,64182.0,64175.0,0.35438174]
[1721262586184,0.025,64178.0,64176.0,0.158615]
[1721262586388,0.00083,64176.0,64175.0,0.355823]
[1721262586594,0.02583,64176.0,64175.0,0.355823]
[1721262587180,0.02583,64176.0,64175.0,0.66747]
[1721262588464,0.02583,64176.0,64175.0,0.67347]
[1721262588976,0.00083,64176.0,64175.0,1.51034574]
[1721262589180,0.00083,64176.0,64175.0,1.51334574]
[1721262589352,0.00083,64176.0,64175.0,1.61818375]
[1721262589611,0.00083,64176.0,64175.0,1.51734574]
[1721262589792,0.00083,64176.0,64175.0,1.61518298]
[1721262590022,0.00083,64176.0,64175.0,1.61218298]
[1721262590224,0.00083,64176.0,64175.0,1.60818298]
[1721262590428,0.00083,64176.0,64175.0,1.61718298]
[1721262590631,0.00083,64176.0,64175.0,1.80058298]
[1721262591705,0.00083,64176.0,64175.0,1.79158298]
[1721262592062,0.00083,64176.0,64175.0,1.79458298]
[1721262592266,0.00083,64176.0,64175.0,1.80258298]
[1721262592465,0.00083,64176.0,64175.0,1.79558298]
[1721262592874,0.00083,64176.0,64175.0,1.80658298]
[1721262595566,0.00083,64176.0,64175.0,1.82932237]
[1721262595716,0.00083,64176.0,64175.0,2.14096937]
[1721262595945,0.00083,64176.0,64175.0,2.04339274]
[1721262596100,0.00044316,64176.0,64175.0,2.19727914]
[1721262596302,0.00044316,64176.0,64175.0,2.50892614]
[1721262598025,0.00044316,64176.0,64175.0,2.65959763]
[1721262598233,1.6e-07,64176.0,64175.0,3.1105961]
[1721262598437,1.6e-07,64176.0,64175.0,2.91639855]
[1721262598676,1.6e-07,64176.0,64175.0,2.96321966]
[1721262598888,1.6e-07,64176.0,64175.0,3.64121966]
[1721262599096,1.6e-07,64176.0,64175.0,3.60869459]
[1721262599317,0.00833,64183.0,64175.0,3.60869459]
[1721262599318,0.00833,64183.0,64182.0,2.112451]
[1721262599531,0.00833,64183.0,64182.0,3.41353518]
[1721262600038,0.00833,64183.0,64182.0,3.45919956]
[1721262600266,0.00833,64183.0,64182.0,3.50636059]
[1721262600882,0.00833,64183.0,64182.0,3.52036059]
[1721262601092,0.00833,64183.0,64182.0,3.42245815]
[1721262601295,0.00833,64183.0,64182.0,3.58100103]
[1721262601616,0.00833,64183.0,64182.0,3.48728478]
[1721262601911,0.00305523,64195.0,64194.0,1.353842]
[1721262602110,0.00305523,64195.0,64194.0,1.63122374]
[1721262602440,0.06498109,64195.0,64194.0,1.23326874]
[1721262602875,0.06498109,64195.0,64194.0,0.61015874]
[1721262602876,0.08998109,64195.0,64194.0,0.61015874]
[1721262603086,0.06498109,64195.0,64194.0,0.92171374]
[1721262603292,0.025,64199.0,64195.0,0.311548]
[1721262603531,0.025,64199.0,64197.0,0.155769]
[1721262603740,0.025,64198.0,64197.0,0.155769]
[1721262604147,0.025,64198.0,64197.0,0.255769]
[1721262604781,0.0246165,64198.0,64197.0,0.255769]
[1721262605179,0.0804,64200.0,64198.0,0.155768]
[1721262605387,0.1414,64200.0,64199.0,0.15438174]
[1721262605576,0.1660165,64200.0,64199.0,0.15438174]
[1721262607006,0.1660165,64200.0,64199.0,0.16038174]
[1721262607475,0.061,64200.0,64199.0,0.31614674]
[1721262607742,0.061,64200.0,64199.0,0.62767774]
[1721262608893,0.0856165,64200.0,64199.0,0.62767774]
[1721262609596,0.0856165,64200.0,64199.0,0.63667774]
[1721262609766,0.061,64200.0,64199.0,0.63667774]
[1721262610195,0.0856165,64200.0,64199.0,0.63667774]
[1721262610602,0.061,64200.0,64199.0,0.63667774]
[1721262612291,0.0856165,64200.0,64199.0,0.63667774]
[1721262612686,0.061,64200.0,64199.0,0.63667774]
[1721262613080,0.0856165,64200.0,64199.0,0.63667774]
[1721262613302,0.061,64200.0,64199.0,0.63667774]
[1721262614157,0.1406,64200.0,64199.0,0.63667774]
[1721262614811,0.0143564,64202.0,64199.0,0.63667774]
[1721262614812,0.0143564,64202.0,64201.0,0.978802]
[1721262614938,0.0143564,64202.0,64201.0,1.25618374]
[1721262615144,0.0143564,64202.0,64201.0,1.56770474]
[1721262615886,0.0143564,64202.0,64201.0,1.64880474]
[1721262616099,0.0143564,64202.0,64201.0,1.72450474]
[1721262616670,0.00733555,64202.0,64201.0,1.72450474]
[1721262617077,0.00733555,64202.0,64201.0,2.03602574]
[1721262617410,0.00733555,64202.0,64201.0,2.16960962]
[1721262617605,0.00733555,64202.0,64201.0,2.07069012]
[1721262617761,0.00733555,64202.0,64201.0,2.08669012]
[1721262618364,0.00733555,64202.0,64201.0,1.67654179]
[1721262618837,0.00733555,64202.0,64201.0,1.58370474]
[1721262619592,0.00816555,64202.0,64201.0,1.58370474]
[1721262620808,0.00816555,64202.0,64201.0,1.72790474]
[1721262621266,0.00816555,64202.0,64201.0,1.82785941]
[1721262622285,0.00816555,64202.0,64201.0,1.8270867]
[1721262622506,0.00816555,64202.0,64201.0,2.1639912]
[1721262622720,0.00816555,64202.0,64201.0,2.19520955]
[1721262623542,0.00816555,64202.0,64201.0,2.17920955]
[1721262623943,0.00816555,64202.0,64201.0,2.20720955]
[1721262624169,0.00816555,64202.0,64201.0,2.19320955]
[1721262624304,0.00816555,64202.0,64201.0,2.17920955]
[1721262624687,0.00816555,64202.0,64201.0,2.19320955]
[1721262624893,0.00816555,64202.0,64201.0,2.50473055]
[1721262625117,0.00816555,64202.0,64201.0,2.66635196]
[1721262625342,0.00816555,64202.0,64201.0,2.5048985]
[1721262625550,0.00816555,64202.0,64201.0,2.65252056]
[1721262625887,0.00816555,64202.0,64201.0,2.66652056]
[1721262626299,0.00816555,64202.0,64201.0,2.87732056]
[1721262626501,0.00816555,64202.0,64201.0,2.92298494]
[1721262627110,0.00816555,64202.0,64201.0,2.89760144]
[1721262627380,0.00816555,64202.0,64201.0,2.42245311]
[1721262627580,0.00816555,64202.0,64201.0,2.37528044]
[1721262627833,0.00816555,64202.0,64201.0,2.18541606]
[1721262628034,0.00816555,64202.0,64201.0,2.009794]
[1721262628185,0.00816555,64202.0,64201.0,1.93844574]
[1721262628395,0.00816555,64202.0,64201.0,2.03865808]
[1721262628735,0.00816555,64202.0,64201.0,2.02465808]
[1721262629579,0.00816555,64202.0,64201.0,2.03604158]
[1721262629755,0.00816555,64202.0,64201.0,2.87755808]
[1721262629962,0.00833,64209.0,64208.0,1.6270745]
[1721262630174,0.00833,64209.0,64208.0,2.20664337]
[1721262630585,0.00833,64209.0,64208.0,2.61813037]
[1721262631215,0.00833,64209.0,64208.0,2.64613037]
[1721262631388,0.00833,64209.0,64208.0,2.64556107]
[1721262631599,0.00833,64209.0,64208.0,2.69122545]
[1721262631797,0.00833,64209.0,64208.0,2.59158241]
[1721262632027,0.00833,64209.0,64208.0,2.85282628]
[1721262632234,0.00833,64209.0,64208.0,2.69122543]
[1721262633786,0.00833,64209.0,64208.0,2.64556105]
[1721262634247,0.00833,64209.0,64208.0,3.48188166]
[1721262634622,0.00833,64209.0,64208.0,3.38223864]
[1721262634799,0.00833,64209.0,64208.0,3.48177318]
[1721262635318,0.00833,64209.0,64208.0,4.21177318]
[1721262635459,0.00833,64209.0,64208.0,4.25743756]
[1721262635810,0.00833,64209.0,64208.0,4.30461023]
[1721262636144,0.00833,64209.0,64208.0,5.00461023]
[1721262636373,2e-07,64210.0,64209.0,0.0253835]
[1721262636591,2e-07,64210.0,64209.0,3.46418595]
[1721262636793,2e-07,64210.0,64209.0,3.78901434]
[1721262637017,2e-07,64210.0,64209.0,3.8122323]
[1721262637215,2e-07,64210.0,64209.0,4.8237143]
[1721262637557,0.0493804,64232.0,64217.0,1.6581015]
[1721262637686,0.0493804,64232.0,64217.0,2.92666254]
[1721262637890,0.0493804,64232.0,64217.0,3.04249959]
[1721262638372,0.0493804,64232.0,64217.0,2.99532692]
[1721262638580,0.0493804,64232.0,64217.0,4.35166254]
[1721262638782,0.0493804,64232.0,64217.0,5.05166254]
[1721262639013,0.0493804,64232.0,64231.0,1.601192]
[1721262639226,0.0493804,64232.0,64231.0,2.10337374]
[1721262639572,0.00833,64235.0,64234.0,1.089763]
[1721262639784,0.00833,64235.0,64234.0,1.36714474]
[1721262639995,0.00833,64235.0,64234.0,1.67850574]
[1721262640401,0.00833,64235.0,64234.0,1.77841785]
[1721262640598,0.00833,64235.0,64234.0,1.80887326]
[1721262641010,0.00833,64235.0,64234.0,1.70972574]
[1721262641207,0.00833,64235.0,64234.0,1.72372574]
[1721262641410,0.00833,64235.0,64234.0,1.70972574]
[1721262641627,0.00833,64235.0,64234.0,1.80901283]
[1721262641820,0.00833,64235.0,64234.0,1.82301283]
[1721262642029,0.00833,64235.0,64234.0,1.84839633]
[1721262642227,0.00833,64235.0,64234.0,1.82301283]
[1721262642865,0.00833,64235.0,64234.0,1.83701283]
[1721262643005,0.00833,64235.0,64234.0,1.82301283]
[1721262643200,0.00833,64235.0,64234.0,1.80901283]
[1721262643406,0.00833,64235.0,64234.0,1.82301283]
[1721262643612,0.00833,64235.0,64234.0,1.83734122]
[1721262643945,0.00833,64235.0,64234.0,1.85134122]
[1721262644770,0.00833,64235.0,64234.0,1.85123489]
[1721262645178,0.0496494,64244.0,64240.0,0.2253835]
[1721262645522,0.00834,64260.0,64259.0,0.66686]
[1721262645733,0.00834,64260.0,64259.0,1.56672174]
[1721262646289,0.00834,64260.0,64259.0,2.24879908]
[1721262646447,0.00834,64260.0,64259.0,2.27225259]
[1721262646644,0.00834,64260.0,64259.0,2.39800055]
[1721262647141,0.00834,64260.0,64259.0,2.38361705]
[1721262647346,0.07194,64260.0,64259.0,1.6840378]
[1721262647584,0.07194,64260.0,64259.0,1.62294174]
[1721262647780,0.07194,64260.0,64259.0,1.60572174]
[1721262647981,0.07194,64260.0,64259.0,0.95824174]
[1721262648392,0.07194,64260.0,64259.0,1.26948174]
[1721262648587,0.07194,64260.0,64259.0,1.25548174]
[1721262648834,0.07194,64260.0,64259.0,1.26948174]
[1721262649397,0.00834,64260.0,64259.0,1.58072174]
[1721262649600,0.00834,64260.0,64259.0,1.83674174]
[1721262649729,0.00834,64260.0,64259.0,1.90294174]
[1721262649945,0.00834,64260.0,64259.0,2.22818174]
[1721262650145,0.00834,64260.0,64259.0,1.91694174]
[1721262650369,0.00834,64260.0,64259.0,2.20018174]
[1721262650571,0.00834,64260.0,64259.0,1.90294174]
[1721262650799,0.00834,64260.0,64259.0,1.83674174]
[1721262651000,0.00834,64260.0,64259.0,1.59794174]
[1721262651209,0.15414,64260.0,64259.0,1.25548174]
[1721262651427,0.15414,64260.0,64259.0,1.26948174]
[1721262651839,0.15414,64260.0,64259.0,1.28348174]
[1721262652413,0.15414,64260.0,64259.0,1.26948174]
[1721262652932,0.15414,64260.0,64259.0,1.28348174]
[1721262653369,0.07264,64260.0,64259.0,1.28348174]
[1721262653497,0.00834,64260.0,64259.0,1.60872174]
[1721262653899,0.00834,64260.0,64259.0,2.09065953]
[1721262655097,0.00834,64260.0,64259.0,2.07665953]
[1721262655316,0.00834,64260.0,64259.0,2.09065953]
[1721262655539,0.0226964,64265.0,64264.0,1.120476]
[1721262655747,0.0226964,64265.0,64264.0,1.62265774]
[1721262656202,0.0226964,64265.0,64264.0,1.93387374]
[1721262656395,0.0226964,64265.0,64264.0,1.95925724]
[1721262657302,0.0226964,64265.0,64264.0,1.97325724]
[1721262658095,0.0226964,64265.0,64264.0,1.98725724]
[1721262659209,0.00860662,64265.0,64264.0,2.37757324]
[1721262659504,0.00834,64275.0,64273.0,1.3457055]
[1721262659644,0.00834,64275.0,64273.0,1.62308724]
[1721262659844,0.00834,64275.0,64273.0,2.13367574]
[1721262660254,0.0246165,64291.0,64290.0,0.355545]
[1721262660603,0.0246165,64291.0,64290.0,0.35438174]
[1721262660740,0.1801585,64291.0,64290.0,0.35438174]
[1721262660953,0.4912435,64291.0,64290.0,0.35438174]
[1721262661548,0.8023285,64291.0,64290.0,0.35438174]
[1721262661765,0.4912435,64291.0,64290.0,0.35438174]
[1721262661951,0.0246165,64291.0,64290.0,0.35438174]
[1721262662533,0.0246165,64291.0,64290.0,0.35538174]
[1721262662534,0.1801585,64291.0,64290.0,0.35538174]
[1721262662664,0.1801585,64291.0,64290.0,0.35438174]
[1721262662865,0.4912435,64291.0,64290.0,0.35438174]
[1721262663094,0.1801585,64291.0,64290.0,0.35938174]
[1721262663300,0.3214585,64291.0,64290.0,0.35938174]
[1721262663475,0.3214585,64291.0,64290.0,0.35438174]
[1721262663902,0.6325435,64291.0,64290.0,0.35438174]
[1721262664163,0.1659165,64291.0,64290.0,0.35438174]
[1721262665235,0.1659165,64291.0,64290.0,0.35838174]
[1721262665674,0.1659165,64291.0,64290.0,0.35438174]
[1721262666051,0.1659165,64291.0,64290.0,0.35938174]
[1721262666933,0.1659165,64291.0,64290.0,0.51692674]
[1721262667135,0.1659165,64291.0,64290.0,0.82801674]
[1721262668154,0.3214585,64291.0,64290.0,0.36138174]
[1721262668357,0.6325435,64291.0,64290.0,0.36138174]
[1721262668561,0.3214585,64291.0,64290.0,0.36138174]
[1721262669167,0.3214585,64291.0,64290.0,0.35438174]
[1721262669319,0.3214585,64291.0,64290.0,0.35538174]
[1721262669733,0.3214585,64291.0,64290.0,0.35438174]
[1721262670128,0.3214585,64291.0,64290.0,0.35738174]
[1721262670558,0.0611,64306.0,64290.0,0.35738174]
[1721262670744,0.0611,64306.0,64305.0,0.666525]
[1721262671088,0.6323345,64306.0,64305.0,0.2]
[1721262671440,0.025,64313.0,64297.0,0.2]
[1721262671441,0.2554415,64298.0,64297.0,0.2]
[1721262671686,0.1658165,64298.0,64297.0,0.35438174]
[1721262671889,0.3213415,64298.0,64297.0,0.35438174]
[1721262672303,0.918827,64298.0,64297.0,0.35438174]
[1721262672516,0.9434435,64298.0,64297.0,0.36138174]
[1721262672694,0.3213415,64298.0,64297.0,0.36138174]
[1721262673030,0.1412,64298.0,64297.0,0.35638174]
[1721262673179,0.3213415,64298.0,64297.0,0.35638174]
[1721262673381,0.3213415,64298.0,64297.0,0.35838174]
[1721262673588,0.1658165,64298.0,64297.0,0.35838174]
[1721262673814,0.1412,64298.0,64297.0,0.35838174]
[1721262673984,0.296725,64298.0,64297.0,0.35838174]
[1721262674387,0.1412,64298.0,64297.0,0.35838174]
[1721262674626,0.1412,64298.0,64297.0,0.35438174]
[1721262674828,0.1412,64298.0,64297.0,0.35938174]
[1721262675393,0.3213415,64298.0,64297.0,0.35938174]
[1721262675591,0.6323925,64298.0,64297.0,0.35938174]
[1721262675791,0.9434435,64298.0,64297.0,0.35938174]
[1721262676280,0.9434435,64298.0,64297.0,0.36138174]
[1721262676475,0.918827,64298.0,64297.0,0.35438174]
[1721262677624,0.918827,64298.0,64289.0,0.2]
[1721262677625,0.0246165,64292.0,64289.0,0.2]
[1721262677835,0.3224615,64290.0,64289.0,0.2]
[1721262678057,0.1801705,64286.0,64285.0,0.04926592]
[1721262678307,0.1801755,64284.0,64283.0,0.2]
[1721262678791,0.4912945,64284.0,64283.0,0.2]
[1721262678961,0.466678,64284.0,64283.0,0.2]
[1721262679223,0.4912945,64284.0,64283.0,0.2]
[1721262679450,0.0753,64296.0,64295.0,0.466599]
[1721262679666,0.066,64299.0,64298.0,0.466576]
[1721262679879,0.0889165,64304.0,64301.0,0.2]
[1721262680113,0.0246165,64306.0,64303.0,0.155513]
[1721262680325,0.0246165,64305.0,64304.0,0.30989274]
[1721262680528,0.155499,64309.0,64304.0,0.15438174]
[1721262680739,0.0246165,64305.0,64304.0,0.30989274]
[1721262680938,0.0246165,64305.0,64304.0,0.15438174]
[1721262681316,0.0889165,64310.0,64304.0,0.15438174]
[1721262681518,0.0643,64310.0,64309.0,0.155499]
[1721262681738,0.0643,64310.0,64309.0,0.30988074]
[1721262682177,0.0643,64310.0,64302.0,0.311031]
[1721262682331,0.1801395,64299.0,64293.0,0.2]
[1721262682535,0.1203885,64298.0,64293.0,0.2]
[1721262682735,0.155533,64295.0,64294.0,0.002794]
[1721262682937,0.155538,64293.0,64288.0,0.155549]
[1721262683140,0.155538,64293.0,64286.0,0.97687928]
[1721262683141,0.221933,64295.0,64290.0,0.000913]
[1721262683460,0.0664,64295.0,64291.0,0.15438174]
[1721262683638,0.1801535,64293.0,64292.0,0.002794]
[1721262683864,0.155537,64293.0,64292.0,0.15438174]
[1721262684280,0.0664,64295.0,64292.0,0.15438174]
[1721262684281,0.0664,64295.0,64294.0,0.2]
[1721262684479,0.0664,64295.0,64294.0,0.50991674]
[1721262685262,0.0664,64295.0,64294.0,0.82098774]
[1721262685488,0.025,64314.0,64302.0,0.155516]
[1721262685489,0.0874165,64303.0,64302.0,0.155516]
[1721262685688,0.0874165,64303.0,64302.0,0.30989774]
[1721262685957,0.0874165,64303.0,64302.0,0.50989774]
[1721262686160,0.0246165,64304.0,64303.0,0.155513]
[1721262686365,0.0246165,64306.0,64305.0,0.466525]
[1721262686617,0.0246165,64306.0,64305.0,0.62090674]
[1721262686829,0.0246165,64306.0,64305.0,0.30988974]
[1721262687900,0.0096165,64306.0,64305.0,0.30988974]